lending/lending_fUSD_20240219
["ID","MTS","AMOUNT","RATE_DAILY","PERIOD"]
[314429918,1708336246391,-1243.77181804,0.00048,30]
[314429919,1708336246402,-17639.16433119,0.00048,30]
[314429920,1708336246427,-423.356324,0.00048,30]
[314429921,1708336246439,-22082.69058649,0.00048,30]
[314429922,1708336246451,-42697.2167634,0.00048,30]
[314429923,1708336246463,-609.47680672,0.00048,30]
[314429924,1708336246523,-500.0,0.0004308,4]
[314429925,1708336246532,-44.13000421,0.0004308,4]
[314429926,1708336246545,-455.86999579,0.0004308,4]
[314429927,1708336246554,-500.0,0.0004308,4]
[314429928,1708336246564,-161.88667664,0.00048,30]
[314429929,1708336246576,-763.04314098,0.00048,30]
[314429930,1708336246593,-865.44923091,0.00048,30]
[314429931,1708336246604,-428.1062567,0.00048,30]
[314429932,1708336246617,-2925.98626232,0.00048,30]
[314429933,1708336246645,-150.0,0.00041079,2]
[314429934,1708336246654,-1200.39539995,0.00048,30]
[314429935,1708336246666,-1133.39535347,0.00048,30]
[314429936,1708336246681,-7949.36896748,0.00048,30]
[314429937,1708336246754,-224.93716217,0.00034099,2]
[314429938,1708336246763,-4433.64214434,0.00048,30]
[314429939,1708336246787,-5509.31240532,0.00048,30]
[314429940,1708336246799,-8624.27938639,0.00048,30]
[314429941,1708336246811,-7129.66054863,0.00048,30]
[314429942,1708336246827,-2005.77526688,0.00048,30]
[314429943,1708336246839,-5326.95674498,0.00048,30]
[314429944,1708336246850,-1807.26038562,0.00048,30]
[314429945,1708336246862,-13468.81371338,0.00048,30]
[314429946,1708336246878,-292579.74376647,0.00048,30]
[314429947,1708336246889,-3384.87796955,0.00048,30]
[314429948,1708336246904,-479.25799999,0.00048,30]
[314429949,1708336246920,-8731.69010922,0.00048,30]
[314429950,1708336246934,-5907.54793839,0.00048,30]
[314429951,1708336246946,-5014.33629517,0.00048,30]
[314429952,1708336246958,-7035.45239463,0.00048,30]
[314429953,1708336246969,-3915.1351933,0.00048,30]
[314429954,1708336247158,-206.4073546,0.00043079,4]
[314429955,1708336247167,-200.0,0.00043446,120]
[314429956,1708336247177,-500.0,0.00047899,4]
[314429957,1708336247187,-536.03868052,0.00047899,4]
[314429958,1708336247196,-4485.35966916,0.00048,30]
[314429959,1708336247213,-295333.9479047,0.00048,30]
[314429960,1708336247224,-59449.96598474,0.00048,30]
[314429961,1708336247244,-8219.90910552,0.00048,30]
[314429962,1708336247256,-958.13796023,0.00048,30]
[314429963,1708336247267,-497.5,0.00048,30]
[314429964,1708336247279,-5613.0,0.00048,30]
[314429965,1708336247299,-438.97155858,0.00048,30]
[314429966,1708336247659,-264.6300005,0.000441,2]
[314429967,1708336265091,1777.19669266,0.000224,2]
[314429968,1708336270633,11199.38948624,0.00023,2]
[314429969,1708336270656,8000.0,0.00023,2]
[314429970,1708336270678,8000.0,0.00023,2]
[314429971,1708336270699,8000.0,0.00023,2]
[314429972,1708336270720,8000.0,0.00023,2]
[314429973,1708336270741,1000.0,0.00023,2]
[314429974,1708336270763,1000.0,0.00023,2]
[314429975,1708336270783,1000.0,0.00023,2]
[314429976,1708336270805,1000.0,0.00023,2]
[314429977,1708336270825,1000.0,0.00023,2]
[314429978,1708336270846,1000.0,0.00023,2]
[314429979,1708336270873,500000.0,0.00023,2]
[314429980,1708336270902,13831.0,0.00023,2]
[314429981,1708336270933,164500.0,0.00023,2]
[314429982,1708336270960,2000.0,0.00023,2]
[314429983,1708336270983,2000.0,0.00023,2]
[314429984,1708336271005,2000.0,0.00023,2]
[314429985,1708336271028,2000.0,0.00023,2]
[314429986,1708336271052,2000.0,0.00023,2]
[314429987,1708336271075,2000.0,0.00023,2]
[314429988,1708336271098,2000.0,0.00023,2]
[314429989,1708336271123,2000.0,0.00023,2]
[314429990,1708336271146,2000.0,0.00023,2]
[314429991,1708336271170,2000.0,0.00023,2]
[314429992,1708336271193,2000.0,0.00023,2]
[314429993,1708336271219,2000.0,0.00023,2]
[314429994,1708336271241,2000.0,0.00023,2]
[314429995,1708336271264,2000.0,0.00023,2]
[314429996,1708336271286,2000.0,0.00023,2]
[314429997,1708336271309,3497516.73621096,0.00023,2]
[314429998,1708336315542,150.0,6.94e-05,2]
[314429999,1708336315564,150.0,6.94e-05,2]
[314430000,1708336315584,150.0,6.94e-05,2]
[314430001,1708336315606,150.0,6.94e-05,2]
[314430002,1708336315627,3195.5,6.94e-05,2]
[314430003,1708336315648,792.63230149,6.94e-05,2]
[314430004,1708336322520,4751.47250547,0.000155,2]
[314430005,1708336326864,820.06976931,0.0002,2]
[314430006,1708336396183,211.52038115,0.0001305,2]
[314430007,1708336428884,3679.19278328,0.000142,2]
[314430008,1708336433650,150.0,0.00023,2]
[314430009,1708336433670,150.0,0.00023,2]
[314430010,1708336433689,200.0,0.00023,2]
[314430011,1708336433708,21284.1122593,0.00023,2]
[314430012,1708336433728,1502483.26378904,0.00023,2]
[314430013,1708336433752,8185.0,0.00023,2]
[314430014,1708336433774,8185.0,0.00023,2]
[314430015,1708336433797,8185.0,0.00023,2]
[314430016,1708336433819,100000.0,0.00023,2]
[314430017,1708336433841,323442.71938657,0.00023,2]
[314430019,1708336450682,53530.08953904,0.0002,2]
[314430020,1708336460265,155.80389697,0.0002,2]
[314430021,1708336696168,155.38349245,0.0002,2]
[314430022,1708336722811,200.0,0.00022885,2]
[314430023,1708336768094,155.0,0.00022885,2]
[314430024,1708336808652,150.0,0.00022771,2]
[314430025,1708336808673,105.13565592,0.00022771,2]
[314430026,1708336812106,155.0,0.00022885,2]
[314430027,1708336828092,150.0,0.00022885,2]
[314430028,1708336828113,5.0,0.00022885,2]
[314430029,1708336846116,279.66133217,0.00022885,2]
[314430030,1708336942186,-155.0,0.00025083,2]
[314430031,1708336942208,-226.65688858,0.00025084,2]
[314430032,1708336942230,-246.0,0.00025089,2]
[314430033,1708336942251,-498.85830519,0.0002509,2]
[314430034,1708336986427,150.0,0.00026229,2]
[314430035,1708336986450,70.74131635,0.00026229,2]
[314430039,1708337077457,150.0,0.00026229,2]
[314430040,1708337077476,50.0,0.00026229,2]
[314430041,1708337179277,170.74,0.00025503,2]
[314430042,1708337238118,-155.0,0.00027199,2]
[314430043,1708337238138,-1109.16533849,0.000272,2]
[314430044,1708337238159,-10.87172878,0.00031758,2]
[314430049,1708337349144,-744.066111,0.00029918,2]
[314430050,1708337356086,-13.053889,0.00029918,2]
[314430051,1708337356106,-150.0,0.00031752,2]
[314430052,1708337356126,-2000.0,0.00031761,2]
[314430053,1708337356146,-940.45614524,0.00031801,2]
[314430061,1708337432310,-250.0,0.00031506,2]
[314430062,1708337432320,-909.07266442,0.00031557,2]
[314430063,1708337432331,-250.0,0.00031558,2]
[314430064,1708337432341,-934.16,0.0003158,2]
[314430065,1708337432352,-2987.6994,0.00031661,2]
[314430066,1708337432362,-187.53587003,0.00031701,2]
[314430067,1708337432372,-366.42022646,0.00031801,2]
[314430068,1708337432604,-1398.1236283,0.00031801,2]
[314430070,1708337432614,-860.67,0.00031828,2]
[314430071,1708337432623,-2106.2,0.00031842,2]
[314430072,1708337432633,-300.0,0.00031878,3]
[314430073,1708337432642,-150.0,0.00031878,3]
[314430074,1708337432651,-1852.42,0.00031879,2]
[314430075,1708337432661,-157.02,0.00031885,2]
[314430076,1708337432670,-150.0,0.00031891,2]
[314430077,1708337432680,-200.0,0.00031898,2]
[314430078,1708337432692,-208.0,0.00032018,2]
[314430079,1708337432701,-157.02,0.0003207,2]
[314430080,1708337432711,-499.99,0.0003207,2]
[314430081,1708337432721,-1105.13,0.0003209,2]
[314430082,1708337432730,-757.12,0.00032182,2]
[314430083,1708337432739,-500.0,0.00032235,2]
[314430084,1708337432748,-150.0,0.00032235,2]
[314430085,1708337432757,-157.02,0.00032254,2]
[314430086,1708337432766,-1105.13,0.00032275,2]
[314430087,1708337432776,-200.0,0.00032293,2]
[314430088,1708337432785,-157.02,0.00032439,2]
[314430089,1708337432794,-150.0,0.00032439,2]
[314430090,1708337432803,-1105.13,0.00032461,2]
[314430091,1708337432812,-157.02,0.00032623,2]
[314430092,1708337432821,-1105.13,0.00032646,2]
[314430093,1708337432831,-1685.0,0.000327,2]
[314430094,1708337432840,-10676.0,0.000327,2]
[314430095,1708337432850,-500.0,0.0003271,2]
[314430096,1708337432859,-200.0,0.00032737,2]
[314430097,1708337432868,-157.02,0.00032808,2]
[314430098,1708337432877,-1105.13,0.00032832,2]
[314430099,1708337432887,-419.86,0.00032875,2]
[314430100,1708337432896,-1074.51749297,0.00032889,4]
[314430101,1708337432905,-283.81627519,0.0003289,4]
[314430102,1708337432914,-174984.67227709,0.00032891,2]
[314430103,1708337432923,-23900.0,0.00032892,2]
[314430104,1708337432934,-250.0,0.00032933,2]
[314430105,1708337432943,-164.6,0.00032954,2]
[314430106,1708337432952,-500.0,0.0003296,2]
[314430107,1708337432961,-157.02,0.00032993,2]
[314430108,1708337432970,-651.78611553,0.00033,120]
[314430109,1708337432980,-1105.13,0.00033017,2]
[314430110,1708337432989,-2623.36,0.00033018,2]
[314430111,1708337432998,-157.02,0.00033177,2]
[314430112,1708337433007,-1105.13,0.00033202,2]
[314430113,1708337433016,-157.02,0.00033362,2]
[314430114,1708337433025,-1105.13,0.00033388,2]
[314430115,1708337433035,-2106.2,0.00033486,2]
[314430116,1708337433044,-157.02,0.00033546,2]
[314430117,1708337433052,-1105.13,0.00033573,2]
[314430118,1708337433061,-1105.13,0.00033759,2]
[314430119,1708337433071,-166.28,0.00033781,2]
[314430120,1708337433080,-150.0,0.00034177,2]
[314430121,1708337433089,-163.25,0.00034308,2]
[314430122,1708337433098,-757.12,0.00034446,2]
[314430123,1708337433107,-1446.88751,0.0003452,2]
[314430124,1708337433116,-2321.650426,0.0003452,2]
[314430125,1708337433126,-2170.331266,0.00034794,2]
[314430126,1708337433135,-3482.47564,0.00034794,2]
[314430127,1708337433144,-163.25,0.0003488,2]
[314430128,1708337433322,-402.87110331,0.00034926,4]
[314430129,1708337433333,-155.41671059,0.00034927,4]
[314430130,1708337433343,-511.3098937,0.00034927,4]
[314430131,1708337433352,-4233.54415309,0.00034928,2]
[314430132,1708337433362,-2893.775021,0.00034931,2]
[314430133,1708337433371,-4643.300853,0.00034931,2]
[314430134,1708337433381,-206.0,0.00035066,3]
[314430135,1708337433391,-3617.218776,0.00035068,2]
[314430136,1708337433401,-5804.126066,0.00035068,2]
[314430137,1708337433410,-237.68,0.00035126,2]
[314430138,1708337433420,-2106.2,0.0003513,2]
[314430139,1708337433429,-5064.106287,0.00035342,2]
[314430140,1708337433440,-8125.776493,0.00035342,2]
[314430141,1708337433449,-235.05,0.00035364,2]
[314430142,1708337433459,-163.25,0.00035451,2]
[314430143,1708337433468,-934.16,0.00035528,2]
[314430144,1708337433478,-150.0,0.00035547,2]
[314430145,1708337433487,-378.86367297,0.000357,2]
[314430146,1708337433497,-163.25,0.00036023,2]
[314430147,1708337433506,-3143.67554479,0.00036389,2]
[314430148,1708337433516,-3143.6755447,0.00036389,2]
[314430149,1708337433525,-3143.6755447,0.00036389,2]
[314430150,1708337433536,-1322.25,0.00036514,2]
[314430151,1708337433545,-163.25,0.00036595,2]
[314430152,1708337433555,-757.12,0.0003671,2]
[314430153,1708337433565,-2106.2,0.00036774,2]
[314430154,1708337433574,-9171.3346948,0.000368,2]
[314430155,1708337433583,-237.68,0.00036883,2]
[314430156,1708337433593,-8022.52709573,0.00037,15]
[314430157,1708337433602,-163.25,0.00037167,2]
[314430158,1708337433612,-250.484529,0.00037307,2]
[314430159,1708337433621,-518.62104296,0.000374,5]
[314430160,1708337433630,-2075.0,0.00037638,2]
[314430161,1708337433639,-180.0,0.00037671,2]
[314430162,1708337433649,-209.46030528,0.0003769,10]
[314430163,1708337433658,-592.8676,0.000377,2]
[314430164,1708337433667,-136549.021,0.000377,2]
[314430165,1708337433677,-163.25,0.00037739,2]
[314430166,1708337433687,-250.484529,0.00037774,2]
[314430167,1708337433696,-3000.0,0.000378,2]
[314430168,1708337433706,-3000.0,0.000378,2]
[314430169,1708337433714,-3000.0,0.000378,2]
[314430170,1708337433723,-5154.50094732,0.000378,2]
[314430171,1708337433733,-186.73477094,0.000378,2]
[314430172,1708337433742,-250.0,0.000378,2]
[314430173,1708337433752,-888.06172592,0.00037828,2]
[314430174,1708337433762,-3143.6755447,0.00037828,2]
[314430175,1708337433770,-787.60191153,0.0003787,2]
[314430176,1708337433780,-193.06459409,0.0003787,2]
[314430177,1708337433789,-130963.54783805,0.0003788,2]
[314430178,1708337433798,-90384.2205089,0.000379,3]
[314430179,1708337433807,-177.53,0.0003797,2]
[314430180,1708337433816,-11877.93667465,0.00038,2]
[314430181,1708337433925,-15354.01319535,0.00038,2]
[314430182,1708337433935,-185.0,0.00038,2]
[314430183,1708337433944,-314.0,0.00038,2]
[314430184,1708337433954,-250.0,0.00038074,2]
[314430185,1708337433964,-250.484529,0.0003824,2]
[314430186,1708337433973,-170.74,0.00038255,30]
[314430187,1708337433982,-250.0,0.00038348,2]
[314430188,1708337433992,-150.0,0.00038356,2]
[314430189,1708337434001,-306.56,0.00038356,15]
[314430190,1708337434010,-2106.2,0.00038417,2]
[314430191,1708337434019,-6314.05527011,0.00038459,14]
[314430192,1708337434028,-2754.16883045,0.00038459,12]
[314430193,1708337434038,-275.41688304,0.00038459,12]
[314430194,1708337434046,-177.53,0.00038518,2]
[314430195,1708337434057,-314.0,0.0003863,14]
[314430196,1708337434069,-237.68,0.00038639,2]
[314430197,1708337434078,-2000.0,0.0003866,5]
[314430198,1708337434088,-510.01723771,0.0003869,2]
[314430199,1708337434097,-250.484529,0.00038706,2]
[314430200,1708337434107,-5608.51421387,0.00038753,12]
[314430201,1708337434116,-190.37017004,0.00038776,7]
[314430202,1708337434124,-361536.882036,0.0003879,4]
[314430203,1708337434133,-1166.999999,0.00038798,2]
[314430204,1708337434144,-250.0,0.00038799,2]
[314430205,1708337434154,-479566.67395624,0.000388,3]
[314430213,1708337438246,-184.89280178,0.00033195,2]
[314430214,1708337438256,-187.53587002,0.00034057,2]
[314430215,1708337438266,-69.99224967,0.0003879,3]
[314430216,1708337438302,-300.32,0.0003879,3]
[314430217,1708337438365,-772.69124252,0.0003879,3]
[314430218,1708337438421,-45960.93843594,0.0003879,3]
[314430219,1708337438430,-260346.87195155,0.000388,3]
[314430220,1708337438440,-336.70170414,0.0003887,2]
[314430221,1708337438449,-5000.0,0.0003887,3]
[314430222,1708337438458,-1001.28955524,0.00038874,2]
[314430223,1708337438467,-154.63198928,0.00038874,7]
[314430224,1708337438476,-1871.30631412,0.00038874,2]
[314430225,1708337438485,-222.92992167,0.00038874,2]
[314430226,1708337438495,-1831.82,0.000389,3]
[314430227,1708337438504,-1831.82,0.000389,3]
[314430228,1708337438513,-1831.82,0.000389,3]
[314430229,1708337438522,-1831.82,0.000389,3]
[314430230,1708337438531,-1831.82,0.000389,3]
[314430231,1708337438540,-1831.82,0.000389,3]
[314430232,1708337438549,-1831.82,0.000389,3]
[314430233,1708337438558,-1831.82,0.000389,3]
[314430234,1708337438568,-1831.82,0.000389,3]
[314430235,1708337438576,-1831.82,0.000389,3]
[314430236,1708337438585,-1831.82,0.000389,3]
[314430237,1708337438594,-1831.82,0.000389,3]
[314430238,1708337438603,-1831.82,0.000389,3]
[314430239,1708337438613,-1831.82,0.000389,3]
[314430240,1708337438622,-1831.82,0.000389,3]
[314430241,1708337438631,-1831.82,0.000389,3]
[314430242,1708337438639,-1831.82,0.000389,3]
[314430243,1708337438648,-1831.82,0.000389,3]
[314430244,1708337438657,-1831.82,0.000389,3]
[314430245,1708337438666,-1831.82,0.000389,3]
[314430246,1708337438675,-152.78,0.000389,3]
[314430247,1708337438684,-152.78,0.000389,3]
[314430248,1708337438694,-152.78,0.000389,3]
[314430249,1708337438703,-152.78,0.000389,3]
[314430250,1708337438712,-314.0,0.00038904,14]
[314430251,1708337438721,-90384.2205089,0.0003896,4]
[314430252,1708337438730,-104541.59369385,0.0003897,2]
[314430253,1708337438739,-757.12,0.00038974,2]
[314430254,1708337438748,-800.0,0.00039,2]
[314430255,1708337438756,-6763.16311804,0.00039024,2]
[314430256,1708337438765,-177.53,0.00039066,2]
[314430257,1708337438774,-150.0,0.000391,2]
[314430258,1708337438783,-5000.0,0.00039124,3]
[314430259,1708337438792,-250.484529,0.00039173,2]
[314430260,1708337438801,-314.0,0.00039178,14]
[314430261,1708337438810,-589.14,0.0003926,2]
[314430262,1708337438820,-500.0,0.00039347,2]
[314430263,1708337438829,-166.28,0.00039356,2]
[314430264,1708337438838,-150.0,0.00039366,2]
[314430265,1708337438847,-787.60191153,0.00039449,2]
[314430266,1708337438856,-314.0,0.00039452,14]
[314430267,1708337438865,-934.16,0.00039475,2]
[314430268,1708337438875,-154.73626959,0.000395,20]
[314430269,1708337438884,-150.0,0.000395,2]
[314430270,1708337438893,-500.0,0.000395,2]
[314430271,1708337438902,-888.06172592,0.00039507,2]
[314430272,1708337438910,-3143.6755447,0.00039507,2]
[314430273,1708337438919,-150.0,0.00039522,2]
[314430274,1708337438928,-300.0,0.00039542,2]
[314430275,1708337438938,-150.0,0.00039542,2]
[314430276,1708337438947,-5608.51421379,0.00039585,13]
[314430277,1708337438955,-177.53,0.00039614,2]
[314430278,1708337438964,-167.89,0.00039726,2]
[314430279,1708337438973,-5000.0,0.0003975,4]
[314430280,1708337438982,-750.0,0.00039895,2]
[314430281,1708337438991,-152.0,0.0003996,3]
[314430282,1708337439000,-519.9320021,0.0003998,2]
[314430283,1708337439010,-425.91328036,0.00039999,31]
[314430284,1708337439019,-500.0,0.00039999,31]
[314430285,1708337439028,-500.0,0.00039999,31]
[314430286,1708337439037,-597.03173868,0.00039999,31]
[314430287,1708337439046,-497.82036,0.00039999,31]
[314430288,1708337439055,-1544.10224881,0.0004,30]
[314430289,1708337439064,-491.51376351,0.0004,4]
[314430290,1708337439073,-678.57678897,0.0004,2]
[314430291,1708337439082,-7000.0,0.0004,3]
[314430292,1708337439091,-2008.83409558,0.0004,4]
[314430293,1708337439101,-343.52174372,0.0004,2]
[314430294,1708337439110,-19290.29871005,0.0004,2]
[314430295,1708337439119,-255.0,0.0004,12]
[314430296,1708337439127,-255.0,0.0004,12]
[314430297,1708337439136,-246.68512293,0.0004,15]
[314430298,1708337439146,-255.0,0.0004,12]
[314430299,1708337439154,-255.0,0.0004,12]
[314430300,1708337439164,-4998.24,0.0004,2]
[314430301,1708337439173,-255.0,0.0004,12]
[314430302,1708337439184,-150.52069427,0.00040048,2]
[314430303,1708337439194,-500.0,0.00040048,2]
[314430304,1708337439204,-2106.2,0.00040061,2]
[314430305,1708337439215,-150.0,0.0004007,2]
[314430306,1708337439227,-177.53,0.00040162,2]
[314430307,1708337439237,-314.0,0.00040274,14]
[314430308,1708337439246,-11000.89649696,0.000403,2]
[314430309,1708337439255,-373.531358,0.000403,2]
[314430310,1708337439265,-312.51780327,0.00040317,32]
[314430311,1708337439275,-150.0,0.00040375,2]
[314430312,1708337439284,-90384.2205089,0.00040393,6]
[314430313,1708337439293,-237.68,0.00040395,2]
[314430314,1708337439303,-1000.0,0.000404,3]
[314430315,1708337439313,-736.50364982,0.00040403,2]
[314430316,1708337439322,-464.09822364,0.00040403,2]
[314430317,1708337439332,-193.06459409,0.00040407,2]
[314430318,1708337439341,-151.0,0.00040413,14]
[314430319,1708337439350,-151.0,0.00040413,14]
[314430320,1708337439359,-151.0,0.00040413,14]
[314430321,1708337439369,-151.0,0.00040413,14]
[314430322,1708337439379,-151.0,0.00040413,14]
[314430323,1708337439389,-151.0,0.00040413,14]
[314430324,1708337439398,-151.0,0.00040413,14]
[314430325,1708337439407,-151.0,0.00040413,14]
[314430326,1708337439416,-237.112516,0.00040413,14]
[314430327,1708337439426,-151.0,0.00040413,14]
[314430328,1708337439435,-329.68069906,0.00040416,3]
[314430329,1708337439448,-238.47377814,0.00040416,3]
[314430330,1708337439457,-329.68069906,0.00040416,3]
[314430331,1708337439467,-238.47377814,0.00040416,3]
[314430332,1708337439476,-329.68069906,0.00040416,3]
[314430333,1708337439485,-238.47377814,0.00040416,3]
[314430334,1708337439495,-5608.51421379,0.00040416,14]
[314430335,1708337439506,-1085.0,0.00040417,120]
[314430336,1708337439516,-1000.0,0.00040417,60]
[314430337,1708337439525,-2357.8794,0.00040417,7]
[314430338,1708337439535,-209.03611046,0.00040417,120]
[314430339,1708337439545,-178.57211622,0.00040417,30]
[314430340,1708337439554,-117538.8218776,0.00040417,2]
[314430341,1708337439564,-2698.11330031,0.00040417,120]
[314430342,1708337439575,-8549.04818775,0.00040417,3]
[314430343,1708337439584,-870.05219542,0.00040417,120]
[314430344,1708337439594,-1138.89693226,0.00040417,120]
[314430345,1708337439603,-1372.34906709,0.00040417,60]
[314430346,1708337439613,-270.77642402,0.00040417,120]
[314430347,1708337439624,-150475.92755094,0.00040417,2]
[314430348,1708337439633,-328.1008825,0.00040417,30]
[314430349,1708337439643,-170.83981171,0.00040417,30]
[314430350,1708337439653,-312.48999945,0.00040417,120]
[314430351,1708337439662,-355.00984534,0.00040417,120]
[314430352,1708337439671,-156.52846427,0.00040417,120]
[314430353,1708337439681,-757.93323932,0.00040417,30]
[314430354,1708337439692,-219.52767301,0.00040417,2]
[314430355,1708337439701,-2946.05431458,0.00040417,120]
[314430356,1708337439711,-577.43723592,0.00040417,30]
[314430357,1708337439720,-10302.598966,0.00040417,2]
[314430358,1708337439729,-5399.32854119,0.00040417,2]
[314430359,1708337439738,-300.0,0.00040417,15]
[314430360,1708337439747,-6688.76371315,0.00040417,2]
[314430361,1708337439756,-2365841.45503645,0.00040417,10]
[314430362,1708337439765,-1418.33147098,0.00040417,2]
[314430363,1708337439774,-14578.06572,0.00040417,2]
[314430364,1708337439784,-6300.0,0.00040417,8]
[314430365,1708337439793,-1029.75374676,0.00040417,2]
[314430366,1708337439802,-323.10274224,0.00040417,120]
[314430367,1708337439811,-78787.40912283,0.00040417,2]
[314430368,1708337439954,-2459.59302773,0.00040417,2]
[314430372,1708337440954,-187.53587002,0.00036414,2]
[314430373,1708337440963,-178.56412998,0.00040417,2]
[314430374,1708337441625,-27289.52592091,0.00040417,2]
[314430375,1708337441635,-754.51224892,0.00040417,2]
[314430376,1708337441644,-837.55895957,0.00040417,2]
[314430377,1708337441653,-1006.68963634,0.00040417,2]
[314430378,1708337441663,-88231.0,0.00040417,2]
[314430379,1708337441672,-4173.82863797,0.00040417,2]
[314430380,1708337441833,-202.34925018,0.00040417,120]
[314430381,1708337441843,-2489.33303685,0.00040417,30]
[314430382,1708337441852,-571.11455006,0.00040417,2]
[314430383,1708337441861,-12364.01358944,0.00040417,2]
[314430384,1708337441870,-1851.01615979,0.00040417,2]
[314430385,1708337441879,-947.13289149,0.00040417,2]
[314430386,1708337441889,-643.0,0.00040417,2]
[314430387,1708337441898,-934.57852649,0.00040417,2]
[314430388,1708337441907,-10847.54056562,0.00040417,2]
[314430389,1708337441916,-9449.8208239,0.00040417,2]
[314430390,1708337441925,-152.17925861,0.00040417,120]
[314430391,1708337441934,-552.01301583,0.00040417,2]
[314430392,1708337441945,-1770.53245667,0.00040417,2]
[314430393,1708337441955,-168.20927507,0.00040417,2]
[314430394,1708337441964,-318.03394807,0.00040417,2]
[314430395,1708337441973,-5545.56163572,0.00040417,2]
[314430396,1708337441982,-8855.27919607,0.00040417,2]
[314430397,1708337441991,-190.96944775,0.00040417,60]
[314430398,1708337442000,-310.6213948,0.00040417,120]
[314430399,1708337442010,-550.0,0.00040417,2]
[314430400,1708337442019,-1396.47684312,0.00040417,2]
[314430401,1708337442028,-971.20231783,0.00040417,2]
[314430402,1708337442037,-1006.90165067,0.00040417,2]
[314430403,1708337442046,-1518.11610208,0.00040417,2]
[314430404,1708337442055,-10319.14099677,0.00040417,2]
[314430405,1708337442064,-3764.87315583,0.00040417,2]
[314430406,1708337442243,-281.70783134,0.00040417,2]
[314430407,1708337442253,-421.82861315,0.00040417,2]
[314430408,1708337442265,-306.09729367,0.00040417,2]
[314430409,1708337442288,-10537.67168382,0.00040417,2]
[314430413,1708337443235,-24310.95399293,0.00040417,2]
[314430414,1708337443247,-11955.20439353,0.00040417,2]
[314430415,1708337443259,-1321.86465,0.00040417,2]
[314430416,1708337443272,-13833.184442,0.00040417,2]
[314430417,1708337443301,-23003.5090586,0.00040417,2]
[314430418,1708337443314,-6008.74615235,0.00040417,2]
[314430419,1708337443325,-546.08985808,0.00040417,2]
[314430420,1708337443336,-1304.2,0.00040417,2]
[314430421,1708337443352,-26130.45898781,0.00040417,2]
[314430422,1708337443364,-344.0669848,0.00040417,2]
[314430423,1708337443476,-39220.94076633,0.00040417,2]
[314430424,1708337443486,-14415.67701222,0.00040417,2]
[314430425,1708337443496,-284.5300206,0.00040417,120]
[314430426,1708337443505,-252.51685684,0.00040417,15]
[314430427,1708337443515,-225.29780921,0.00040417,120]
[314430428,1708337443524,-6000.0,0.00040417,2]
[314430429,1708337443533,-952.53198172,0.00040417,120]
[314430430,1708337443542,-1253.29654228,0.00040417,15]
[314430431,1708337443552,-4507.74294368,0.00040417,2]
[314430432,1708337443562,-10228.70861508,0.00040417,2]
[314430433,1708337443570,-325.521468,0.00040417,119]
[314430434,1708337443580,-343.60519928,0.00040417,2]
[314430435,1708337443589,-200.0,0.00040417,2]
[314430436,1708337443598,-18155.36883105,0.00040417,2]
[314430437,1708337443607,-15355.87937239,0.00040417,4]
[314430438,1708337443616,-629.87155131,0.00040417,2]
[314430439,1708337443625,-604.13118998,0.00040417,2]
[314430440,1708337443634,-207.14837962,0.00040417,2]
[314430441,1708337443644,-147956.0860933,0.00040417,2]
[314430442,1708337443653,-279.50944117,0.00040417,120]
[314430443,1708337443662,-27908.72463814,0.00040417,2]
[314430444,1708337443676,-17643.93428112,0.00040417,2]
[314430445,1708337443685,-253.49282628,0.00040417,120]
[314430446,1708337443695,-433.21146317,0.00040417,2]